bitfinex/quotes_ETHUSD_20220118
["timestamp","ask_amount","ask_price","bid_price","bid_amount"]
[1642516248645,5.9283,3117.2,3116.5,5.39248595]
[1642516248762,1.77473115,3116.6,3116.5,5.39248595]
[1642516249067,3.15745224,3116.6,3116.2,4.6617]
[1642516249462,0.00625267,3116.5,3116.2,4.6617]
[1642516249741,0.00625267,3116.5,3115.8,0.1283]
[1642516249870,0.14585976,3116.4,3115.8,5.2248]
[1642516250074,1.54206656,3116.0,3115.8,5.2248]
[1642516250280,1.84206656,3116.0,3115.8,0.1283]
[1642516250486,1.84206656,3116.0,3115.2,5.39248595]
[1642516250487,8.03763153,3115.9,3115.2,5.39248595]
[1642516250693,3.05206291,3115.9,3114.7,6.59885653]
[1642516250881,0.0022737,3115.8,3114.6,5.39248595]
[1642516251174,0.1283,3116.6,3115.6,0.01223233]
[1642516251412,0.1283,3116.6,3115.7,0.02020048]
[1642516251716,0.00113685,3116.0,3115.9,2.11909044]
[1642516251923,0.00113685,3116.0,3115.9,1.21185661]
[1642516252111,0.00113685,3116.0,3115.6,0.01223233]
[1642516252313,0.00113685,3116.0,3115.2,2.42929699]
[1642516252721,0.00113685,3116.0,3115.3,0.00284212]
[1642516253115,1.18334333,3115.8,3115.3,0.00284212]
[1642516253346,6.08625124,3115.6,3115.2,2.38213911]
[1642516253516,6.05,3115.5,3114.1,0.13819997]
[1642516253733,6.05,3115.5,3113.8,1.0]
[1642516253734,11.64106975,3115.5,3113.8,1.0]
[1642516253922,11.64106975,3115.5,3114.5,0.00454738]
[1642516254122,11.64106975,3115.5,3114.9,1.61880316]
[1642516254123,2.91525347,3115.4,3114.9,1.61880316]
[1642516254330,2.91525347,3115.4,3114.4,3.23760632]
[1642516254331,6.05,3114.9,3114.4,3.23760632]
[1642516254727,0.3,3114.9,3114.4,3.23760632]
[1642516254922,0.1283,3115.3,3114.5,0.01780312]
[1642516255184,0.1283,3115.3,3114.5,0.1283]
[1642516255375,0.00113685,3115.5,3114.6,1.53259709]
[1642516255670,0.00113685,3115.5,3114.7,0.15316795]
[1642516255875,0.00113685,3115.5,3114.8,2.69379071]
[1642516256192,0.00113685,3115.5,3114.9,0.02160199]
[1642516256372,0.00113685,3115.5,3115.3,1.22113055]
[1642516257888,0.00113685,3115.5,3115.0,0.00170527]
[1642516258091,0.76213685,3115.5,3115.0,0.00170527]
[1642516258274,0.76213685,3115.5,3114.8,0.00284211]
[1642516258275,0.1283,3115.4,3114.8,0.00284211]
[1642516258517,0.01180408,3115.3,3114.4,0.00511581]
[1642516258688,0.1283,3115.2,3114.3,0.00568423]
[1642516258913,3.1766457,3114.5,3114.3,0.00568423]
[1642516259115,4.5837457,3114.5,3114.3,0.00568423]
[1642516259340,4.5837457,3114.5,3114.0,0.0073895]
[1642516259517,1.4071,3114.5,3114.0,0.0073895]
[1642516260127,0.1283,3114.6,3114.0,0.0073895]
[1642516260330,0.1283,3115.2,3114.0,0.0073895]
[1642516260584,1.99314192,3115.2,3114.0,0.0073895]
[1642516260737,1.28523736,3114.9,3114.0,0.0073895]
[1642516260916,1.58523736,3114.9,3114.0,0.0073895]
[1642516261124,1.13957212,3114.4,3114.0,0.0073895]
[1642516261333,0.13616832,3114.3,3114.0,0.0073895]
[1642516261533,0.13616832,3114.3,3113.6,0.00966319]
[1642516261534,1.824105,3114.2,3113.6,0.00966319]
[1642516261727,0.1283,3114.1,3113.4,0.01080004]
[1642516262035,1.4568443,3113.9,3113.4,0.01080004]
[1642516262421,0.1283,3114.1,3113.4,4.15060026]
[1642516262672,0.1283,3114.1,3113.5,0.0783]
[1642516262864,0.1283,3114.1,3113.5,0.08853162]
[1642516263063,0.1283,3114.1,3113.6,0.00966319]
[1642516263264,0.1283,3114.1,3113.7,0.1283]
[1642516263468,4.13980022,3115.1,3113.8,3.10912418]
[1642516263689,0.03334947,3115.2,3113.9,0.1283]
[1642516263901,0.1283,3115.7,3114.4,0.06468661]
[1642516264068,0.03346969,3115.8,3114.5,0.1283]
[1642516264266,0.03346969,3115.8,3114.5,0.13284738]
[1642516264468,0.03346969,3115.8,3114.5,0.00454738]
[1642516264671,0.03346969,3115.8,3115.2,1.34224735]
[1642516265169,0.0326233,3115.6,3115.2,1.34224735]
[1642516265383,0.0326233,3115.6,3114.6,0.1283]
[1642516265767,3.30113685,3115.5,3114.7,0.00341054]
[1642516265980,2.95034219,3115.5,3114.7,0.00341054]
[1642516266172,2.95034219,3115.5,3115.0,2.10735168]
[1642516266431,2.95034219,3115.5,3115.1,1.42116657]
[1642516266615,2.95034219,3115.5,3115.1,1.42344026]
[1642516266810,2.95034219,3115.5,3115.2,0.00170527]
[1642516267212,0.01139231,3115.4,3114.7,0.00454739]
[1642516267437,1.8694627,3115.3,3114.6,0.00511581]
[1642516267612,1.8694627,3115.3,3114.5,0.00568423]
[1642516267613,1.94931427,3114.7,3114.5,0.00568423]
[1642516267813,1.10627816,3114.6,3114.5,0.00568423]
[1642516268012,1.10627816,3114.6,3114.3,0.16824359]
[1642516268213,0.3,3114.6,3114.3,0.16824359]
[1642516268628,0.3,3114.7,3114.3,0.16824359]
[1642516268827,0.1283,3115.4,3114.3,0.16824359]
[1642516269033,0.00341054,3115.0,3114.0,1.2362395]
[1642516269221,0.00341054,3115.0,3114.0,1.07830654]
[1642516269421,1.69868074,3114.9,3114.1,0.00170527]
[1642516269652,1.99868074,3114.9,3114.1,0.00170527]
[1642516269828,1.51994861,3114.5,3114.1,0.00170527]
[1642516270092,1.81994861,3114.5,3114.1,0.00170527]
[1642516270268,1.81994861,3114.5,3114.0,0.00227369]
[1642516270473,0.3,3114.5,3113.9,0.00284211]
[1642516270742,1.78392625,3114.3,3113.9,0.00284211]
[1642516271173,2.1222376,3114.3,3113.9,0.00284211]
[1642516271369,2.08392625,3114.3,3113.9,0.00284211]
[1642516271796,1.21734482,3114.2,3113.9,0.00284211]
[1642516272977,1.21734482,3114.2,3114.0,0.08008262]
[1642516272978,0.3,3114.2,3114.0,0.08008262]
[1642516273168,0.3,3114.3,3114.0,0.08008262]
[1642516273367,0.0022737,3114.8,3114.0,0.08008262]
[1642516273587,0.0022737,3114.8,3113.9,0.00284211]
[1642516273815,0.00170527,3114.7,3113.9,0.00284211]
[1642516274034,1.41953414,3114.5,3113.9,0.00284211]
[1642516274216,2.01382708,3114.1,3113.9,0.00284211]
[1642516274815,2.31382708,3114.1,3113.9,0.00284211]
[1642516275220,0.3,3114.1,3113.9,0.00284211]
[1642516275436,1.41953414,3114.5,3114.1,2.31465228]
[1642516275820,1.41953414,3114.5,3114.2,0.00113684]
[1642516276034,0.00113685,3114.6,3114.2,0.00113684]
[1642516276322,0.00113685,3114.6,3114.3,0.1283]
[1642516277120,0.00113685,3114.6,3114.4,1.1642247]
[1642516277331,0.00113685,3114.6,3114.5,6.5643]
[1642516278176,0.00113685,3114.6,3114.5,8.23591986]
[1642516278787,0.00113685,3114.6,3114.5,6.5643]
[1642516278979,0.00113685,3114.6,3114.5,0.5143]
[1642516279182,0.00113685,3114.6,3114.5,3.8143]
[1642516280182,0.00113685,3114.6,3114.5,5.48599118]
[1642516280462,0.00113685,3114.6,3114.5,0.386]
[1642516282214,0.00113685,3114.6,3114.5,4.186]
[1642516282416,0.00113685,3114.6,3114.5,0.386]
[1642516282813,1.9499657,3114.6,3114.5,2.3862738]
[1642516283115,2.2499657,3114.6,3114.5,2.3862738]
[1642516283313,3.1453657,3114.6,3114.5,2.3862738]
[1642516283912,4.57356544,3114.6,3114.2,0.00113684]
[1642516284114,1.6055995,3114.5,3114.2,0.00113684]
[1642516284323,0.1283,3114.4,3114.2,0.00113684]
[1642516284619,2.06687363,3114.5,3114.2,0.00113684]
[1642516285670,2.06687363,3114.5,3114.2,4.00562482]
[1642516285893,1.76687363,3114.5,3114.2,4.00562482]
[1642516286936,1.63857363,3114.5,3114.4,1.57763365]
[1642516287469,1.93857363,3114.5,3114.4,1.57763365]
[1642516287669,1.63857363,3114.5,3114.4,1.57763365]
[1642516287888,1.63857363,3114.5,3114.2,4.79482936]
[1642516288090,0.01216396,3114.3,3114.1,2.31465228]
[1642516288275,6.1783,3114.2,3114.1,2.31465228]
[1642516288493,6.1783,3114.2,3113.2,2.77834531]
[1642516288494,6.05,3113.9,3113.2,2.77834531]
[1642516288671,20.5247593,3113.8,3113.2,2.77834531]
[1642516288921,0.80323,3113.7,3113.3,0.00511581]
[1642516289150,5.0,3113.6,3113.1,5.39248595]
[1642516289329,6.05,3113.4,3112.7,4.9409]
[1642516289533,2.10804918,3113.3,3112.6,0.1283]
[1642516289740,2.10804918,3113.3,3112.5,2.4930967]
[1642516289741,7.0794737,3113.2,3112.8,0.00284212]
[1642516289927,0.80337,3113.0,3112.8,0.00284212]
[1642516290126,7.15337,3113.0,3112.5,2.4430967]
[1642516290327,1.44089516,3112.7,3112.5,2.4430967]
[1642516290544,6.1785,3112.6,3112.4,5.45046671]
[1642516290741,8.22970929,3112.5,3112.3,0.60932671]
[1642516290945,6.1785,3112.4,3112.3,0.60932671]
[1642516291128,6.98201,3112.4,3112.3,0.60932671]
[1642516291362,0.4285,3112.4,3112.3,0.60932671]
[1642516291533,0.3,3112.4,3112.3,0.60932671]
[1642516291927,0.03275875,3112.5,3112.3,0.60932671]
[1642516291928,0.00170527,3112.9,3112.3,0.60932671]
[1642516292327,1.60779755,3112.8,3112.4,0.00113685]
[1642516292561,1.94516302,3112.8,3112.4,0.00113685]
[1642516292774,1.94402617,3112.8,3112.4,0.00113685]
[1642516293075,1.94390627,3112.8,3112.6,4.37849727]
[1642516293263,5.26664795,3112.7,3112.6,4.37849727]
[1642516293505,5.39514795,3112.7,3112.6,4.37849727]
[1642516294070,5.39514795,3112.7,3112.0,1.0]
[1642516294071,0.0806533,3112.4,3112.0,1.0]
[1642516294273,0.0806533,3112.4,3110.8,5.0889]
[1642516294274,6.06231841,3112.1,3110.8,5.0889]
[1642516294481,0.5698271,3111.1,3110.8,5.0889]
[1642516294672,1.9034271,3111.1,3110.8,5.0889]
[1642516295080,0.3,3111.0,3110.8,5.0889]
[1642516295292,1.14284322,3111.0,3110.8,5.0889]
[1642516295474,5.762406,3110.9,3110.8,5.0889]
[1642516295867,4.75,3110.8,3110.5,3.8161]
[1642516296070,4.75,3110.8,3109.8,3.42283629]
[1642516296071,6.05,3110.5,3109.8,2.74753629]
[1642516296320,23.00478214,3110.7,3109.5,4.81966023]
[1642516296321,18.82923538,3109.8,3109.5,4.81966023]
[1642516296525,22.80599793,3109.8,3109.5,4.81966023]
[1642516296750,22.80599793,3109.8,3109.0,7.96196667]
[1642516296751,2.85,3109.1,3109.0,7.96196667]
[1642516296931,3.9048,3109.1,3109.0,7.96196667]
[1642516297127,3.9048,3109.1,3109.0,0.01023162]
[1642516297527,3.9048,3109.1,3108.8,0.01136847]
[1642516297724,0.1285,3109.0,3108.8,0.01136847]
[1642516298143,1.1285,3109.0,3108.8,6.847e-05]
[1642516298335,6.436,3108.9,3108.2,6.76280595]
[1642516298636,0.01293433,3108.3,3107.1,1.30992941]
[1642516298827,0.16421718,3108.8,3108.3,0.00284212]
[1642516299038,0.16421718,3108.8,3107.6,1.48965002]
[1642516299039,6.05,3108.7,3107.6,1.48965002]
[1642516299228,0.1285,3108.6,3107.7,0.00341054]
[1642516299428,0.13020527,3108.6,3107.7,0.00341054]
[1642516299625,6.35,3108.7,3107.7,0.00341054]
[1642516299626,0.00113685,3108.5,3107.7,0.00341054]
[1642516299933,0.00113685,3108.5,3107.9,0.08998968]
[1642516300179,0.00170527,3108.6,3108.0,0.1285]
[1642516300377,0.00170527,3108.6,3108.1,0.04583332]
[1642516300574,0.386,3110.2,3108.2,3.66494878]
[1642516300575,0.00113685,3108.5,3108.2,3.66494878]
[1642516300771,0.00113685,3108.5,3108.3,0.06391994]
[1642516301000,4.30780337,3110.6,3108.3,0.06391994]
[1642516301001,0.13759478,3109.9,3108.3,5.08628214]
[1642516301172,0.00909478,3109.9,3108.4,0.386]
[1642516301374,0.00742635,3109.8,3108.9,0.01282761]
[1642516301579,0.00742635,3109.8,3109.0,0.1285]
[1642516301776,0.00685793,3109.7,3108.5,0.1285]
[1642516301973,0.00685793,3109.7,3109.3,1.14241413]
[1642516302221,0.00628951,3109.6,3109.4,0.1285]
[1642516302574,0.00572108,3109.5,3109.4,0.1285]
[1642516302788,0.00572108,3109.5,3109.3,1.14241413]
[1642516302971,0.02407232,3109.5,3108.8,0.1285]
[1642516303170,0.02407232,3109.5,3108.7,0.13819997]
[1642516303171,0.00515266,3109.4,3108.7,0.13819997]
[1642516303568,0.00458424,3109.3,3108.7,0.13819997]
[1642516304114,2.0992597,3109.5,3108.2,0.1285]
[1642516304115,0.00401581,3109.2,3108.8,1.45732559]
[1642516304517,0.3,3109.5,3108.8,1.45732559]
[1642516304518,0.00344739,3109.1,3108.8,1.45732559]
[1642516304922,0.00287897,3109.0,3108.9,6.1785]
[1642516305126,0.00287897,3109.0,3108.9,8.73697814]
[1642516305326,0.00287897,3109.0,3108.9,9.73697814]
[1642516305819,7.897e-05,3109.0,3108.9,7.4785]
[1642516306048,0.01201228,3110.8,3109.0,6.05]
[1642516306322,0.00682108,3110.2,3109.1,0.01247245]
[1642516306722,0.1285,3111.2,3109.1,0.01247245]
[1642516306723,0.00625265,3110.1,3109.1,0.01247245]
[1642516306938,0.00625265,3110.1,3109.2,3.0922257]
[1642516307140,0.8436361,3110.9,3110.0,7.52555767]
[1642516307329,0.8436361,3110.9,3110.0,5.2513949]
[1642516307605,0.01023162,3110.8,3110.5,1.51297769]
[1642516307989,0.0096632,3110.7,3110.5,1.81297769]
[1642516308389,0.97931056,3111.3,3110.5,1.51297769]
[1642516308390,0.00909477,3110.6,3110.5,1.51297769]
[1642516309379,2.03436426,3110.6,3109.7,0.1285]
[1642516309597,1.6081521,3110.1,3108.6,0.1285]
[1642516309843,1.6081521,3110.1,3108.4,0.1285]
[1642516309844,0.03779942,3109.9,3108.4,0.1285]
[1642516309977,0.03779942,3109.9,3108.7,0.00170527]
[1642516309978,0.1285,3109.8,3108.7,0.00170527]
[1642516310192,0.83577503,3109.6,3108.5,0.00284212]
[1642516310384,0.83577503,3109.6,3108.5,1.26729317]
[1642516310594,0.83577503,3109.6,3108.4,0.00341054]
[1642516310595,1.79450589,3109.0,3108.4,0.00341054]
[1642516310797,0.00584026,3108.8,3108.6,0.0022737]
[1642516310978,0.01895573,3108.6,3108.4,0.00341054]
[1642516311200,0.01895573,3108.6,3108.1,0.00511581]
[1642516311201,0.1285,3108.5,3108.1,0.00511581]
[1642516311426,0.0061927,3108.4,3108.1,0.00511581]
[1642516311637,1.95626622,3108.3,3108.1,0.00511581]
[1642516313223,23.11336636,3108.2,3108.1,0.00511581]
[1642516313426,6.0793587,3108.1,3106.9,0.1286]
[1642516313624,6.0793587,3108.1,3106.1,4.0901]
[1642516313625,18.8,3107.9,3106.1,4.0901]
[1642516313820,1.6097161,3107.5,3106.1,3.9614]
[1642516314037,0.1287,3107.4,3106.1,3.9614]
[1642516314222,0.1287,3107.4,3106.3,1.08588178]
[1642516314633,0.1287,3107.4,3106.4,0.0073895]
[1642516314923,0.3,3107.3,3106.4,0.0073895]
[1642516315227,0.03883512,3107.2,3106.4,0.0073895]
[1642516315412,1.6092082,3107.9,3107.1,1.41554385]
[1642516315584,1.64547001,3107.9,3107.1,1.41554385]
[1642516315774,1.64547001,3107.9,3107.2,0.00284212]
[1642516315975,1.90591079,3107.4,3107.2,0.00284212]
[1642516316378,1.90591079,3107.4,3106.6,0.00625266]
[1642516316576,3.51538799,3107.4,3106.6,0.00625266]
[1642516316878,0.0806533,3107.2,3107.0,1.51126856]
[1642516317178,0.5147,3108.0,3107.1,0.00341054]
[1642516317392,0.1287,3107.8,3107.1,0.00341054]
[1642516317578,1.6094684,3107.4,3106.5,0.00682108]
[1642516317885,1.76447187,3107.1,3106.3,0.00795793]
[1642516318089,0.8048229,3107.0,3106.3,0.00795793]
[1642516318275,0.84058736,3107.0,3106.4,0.1287]
[1642516318479,0.3,3106.9,3106.4,0.1287]
[1642516318677,0.3,3106.9,3106.5,0.00682108]
[1642516318959,0.3,3106.7,3106.5,0.00682108]
[1642516319435,0.34045115,3106.7,3106.5,0.00682108]
[1642516319635,2.13150212,3106.6,3106.1,0.00909477]
[1642516319842,18.8,3106.5,3106.1,0.00909477]
[1642516320036,18.8,3106.5,3105.5,197.62306293]
[1642516320037,4.35,3106.4,3105.5,197.62306293]
[1642516320239,0.0248397,3106.3,3105.5,197.62306293]
[1642516320450,6.05,3106.2,3105.5,197.62306293]
[1642516320652,6.05,3106.2,3105.5,191.18096633]
[1642516320653,0.01239478,3105.9,3105.5,191.18096633]
[1642516320841,6.05,3105.7,3105.5,176.06690845]
[1642516321043,19.3147,3105.6,3105.5,163.18076355]
[1642516321346,19.3148,3105.6,3105.5,139.75436355]
[1642516321545,20.62714391,3105.6,3105.5,50.74237515]
[1642516321748,20.62714391,3105.6,3104.5,2.5549627]
[1642516321749,6.2306533,3105.5,3104.5,2.4549627]
[1642516321942,0.03920299,3105.3,3104.6,11.4875]
[1642516322141,0.03920299,3105.3,3104.6,11.49318424]
[1642516322142,0.0095656,3105.1,3104.6,11.49318424]
[1642516322344,0.02300568,3104.8,3104.6,5.04792214]
[1642516322595,0.02300568,3104.8,3104.5,2.4549627]
[1642516322596,4.85,3104.6,3104.5,2.4549627]
[1642516322801,11.84038604,3104.6,3104.5,2.4549627]
[1642516322988,0.82778604,3104.6,3104.5,2.4549627]
[1642516323209,0.31298604,3104.6,3104.5,2.4549627]
[1642516323381,0.3,3104.6,3104.5,2.4549627]
[1642516323579,0.01272183,3105.4,3104.5,2.4549627]
[1642516323789,0.01272183,3105.4,3105.0,1.88851398]
[1642516323996,0.00397897,3105.3,3104.5,2.4549627]
[1642516324187,0.13277897,3105.3,3104.5,2.4549627]
[1642516324379,0.00341054,3105.2,3104.5,2.4549627]
[1642516324587,0.00341054,3105.2,3104.6,3.9495238]
[1642516324783,0.00284212,3105.1,3104.6,0.1288]
[1642516325186,0.01267089,3106.4,3104.6,0.1288]
[1642516325187,7.37e-05,3105.0,3104.6,4.0783238]
[1642516325388,7.37e-05,3105.0,3104.7,0.00163157]
[1642516325587,0.0074632,3106.3,3104.8,0.1288]
[1642516326087,0.06697269,3106.1,3104.8,0.1288]
[1642516326194,0.00689478,3106.2,3104.8,0.1288]
[1642516326433,0.00575793,3106.0,3105.6,2.03592002]
[1642516326636,0.00632636,3106.1,3105.7,13.868]
[1642516326851,3.9495238,3106.4,3105.7,13.868]
[1642516326852,0.00518951,3105.9,3105.7,13.868]
[1642516327033,0.00575793,3106.0,3105.7,13.868]
[1642516327236,0.13819997,3106.8,3105.7,13.868]
[1642516327237,0.00462109,3105.8,3105.7,13.868]
[1642516327448,0.00518951,3105.9,3105.7,13.868]
[1642516327635,2.109e-05,3105.8,3105.7,17.018]
[1642516327849,2.109e-05,3105.8,3105.7,14.868]
[1642516328032,2.109e-05,3105.8,3105.7,16.11596381]
[1642516328233,2.109e-05,3105.8,3105.7,16.25416378]
[1642516328646,2.109e-05,3105.8,3105.7,14.00619997]
[1642516332586,2.109e-05,3105.8,3105.7,17.90619997]
[1642516333184,2.109e-05,3105.8,3105.7,18.99575024]
[1642516333386,2.109e-05,3105.8,3105.7,21.14041008]
[1642516333597,7.45451676,3108.4,3105.8,6.15]
[1642516333598,0.1287,3107.6,3105.8,6.15]
[1642516333834,0.01204717,3108.2,3106.2,0.01079021]
[1642516334037,0.1287,3108.1,3106.2,0.01079021]
[1642516334242,0.1287,3108.1,3106.4,0.09082971]
[1642516334448,0.00280531,3108.0,3106.5,0.386]
[1642516334648,0.00280531,3108.0,3106.8,0.80432]
[1642516334849,0.00223689,3107.9,3107.0,0.0375418]
[1642516335037,0.00223689,3107.9,3107.3,0.06012246]
[1642516335241,0.00166846,3107.8,3107.2,0.80421]
[1642516335438,0.00166846,3107.8,3107.4,2.05579945]
[1642516335639,4e-08,3107.7,3107.6,0.07171208]
[1642516335838,4e-08,3107.7,3107.6,2.43580798]
[1642516336048,0.00294743,3108.5,3107.7,0.00798892]
[1642516336244,4.743e-05,3108.5,3107.7,0.1285]
[1642516336539,0.01292402,3109.6,3107.8,0.00393154]
[1642516336540,7.901e-05,3108.4,3107.8,0.00393154]
[1642516336808,7.901e-05,3108.4,3107.9,0.93245]
[1642516336941,0.13193166,3109.5,3107.9,0.1285]
[1642516337142,0.1285,3109.2,3109.1,3.61965028]
[1642516337350,0.13136324,3109.4,3109.1,3.61965028]
[1642516337570,0.13136324,3109.4,3108.0,4.92269469]
[1642516337571,0.00172639,3109.2,3108.0,4.92269469]
[1642516337878,0.01294758,3108.8,3108.1,0.00452626]
[1642516338672,2.19281722,3108.7,3108.1,0.00452626]
[1642516338950,0.57809644,3108.6,3108.1,0.00452626]
[1642516339089,6.02439758,3108.6,3108.1,0.00452626]
[1642516339275,5.35,3108.1,3107.5,6.873]
[1642516339476,4.61252124,3107.6,3107.5,6.873]
[1642516339686,4.61252124,3107.6,3106.1,4.7116]
[1642516339687,2.45,3107.5,3106.1,4.7116]
[1642516339875,1.60972,3107.2,3106.1,4.7116]
[1642516340074,0.1287,3107.1,3106.2,0.01080005]
[1642516340875,0.034651,3106.6,3106.3,0.03172006]
[1642516341104,0.00616737,3107.0,3106.2,0.01080005]
[1642516341326,0.05907474,3106.8,3106.4,0.0096632]
[1642516341538,0.1287,3106.7,3106.4,0.0096632]
[1642516341734,0.05273631,3106.6,3106.4,0.0096632]
[1642516341931,3.75,3106.4,3106.1,4.6712632]
[1642516342168,0.1287,3106.3,3106.1,4.6712632]
[1642516342332,0.1287,3106.3,3106.2,0.00113685]
[1642516342839,0.1287,3106.4,3106.2,0.00113685]
[1642516343130,0.3,3106.5,3106.2,0.00113685]
[1642516343330,0.0203576,3106.4,3106.2,0.00113685]
[1642516343546,0.3,3106.5,3106.3,3.16346308]
[1642516343736,0.03675647,3106.8,3106.3,3.15]
[1642516343934,5.18563135,3107.1,3106.2,0.00113685]
[1642516343935,5.43059427,3107.1,3106.2,0.00113685]
[1642516344139,0.00170527,3106.7,3106.2,0.00113685]
[1642516344338,0.02281679,3106.5,3106.2,0.00113685]
[1642516344657,0.0373354,3106.4,3106.2,0.00113685]
[1642516344834,3.336,3106.3,3106.2,0.00113685]
[1642516345092,3.636,3106.3,3106.2,0.00113685]
[1642516345275,2.61968812,3106.3,3106.2,0.00113685]
[1642516345485,0.686,3106.3,3106.2,0.00113685]
[1642516345694,0.3,3106.3,3106.2,0.00113685]
[1642516346078,0.00227369,3106.8,3106.2,0.00113685]
[1642516346583,0.00170527,3106.7,3106.5,2.21102079]
[1642516346801,0.00170527,3106.7,3106.4,0.01253183]
[1642516346802,0.00170527,3106.7,3106.4,4.38443183]
[1642516346997,1.94607926,3107.6,3106.4,4.38443183]
[1642516346998,0.00113684,3106.6,3106.4,4.38443183]
[1642516347279,0.00625265,3107.5,3106.5,6.2287]
[1642516347612,0.13819997,3107.8,3107.4,4.18980838]
[1642516347786,0.1287,3108.1,3107.4,3.0]
[1642516347979,0.1287,3108.1,3107.5,6.1]
[1642516348202,4.11329307,3108.7,3107.6,10.83719779]
[1642516348399,0.00227369,3108.0,3107.6,6.23819997]
[1642516348582,2.08329039,3108.3,3107.7,12.8686]
[1642516348841,0.00170527,3107.9,3107.7,12.8686]
[1642516349124,0.00113684,3107.8,3107.7,12.7401]
[1642516349327,0.00113684,3107.8,3107.7,10.08975781]
[1642516349538,2.17327457,3107.8,3107.7,10.08975781]
[1642516349785,0.00113684,3107.8,3107.7,10.08975781]
[1642516350725,0.00113684,3107.8,3107.7,11.91353086]
[1642516351125,0.00113684,3107.8,3107.7,13.15621607]
[1642516351339,3.684e-05,3107.8,3107.7,14.68975781]
[1642516352012,3.684e-05,3107.8,3107.7,19.50245823]
[1642516352125,3.684e-05,3107.8,3107.7,15.49389781]
[1642516353377,3.684e-05,3107.8,3107.7,21.77461341]
[1642516353579,2.74099091,3109.2,3107.8,6.1]
[1642516353793,2.77844611,3109.3,3108.9,1.79981543]
[1642516353975,2.77844611,3109.3,3108.6,0.80396]
[1642516353976,0.00738951,3109.1,3108.6,0.80396]
[1642516354376,0.00682109,3109.0,3108.6,0.80396]
[1642516354583,0.00682109,3109.0,3108.4,4.8213]
[1642516354777,2.74099091,3109.2,3108.7,1.09218799]
[1642516354778,0.00625266,3108.9,3108.7,1.09218799]
[1642516355283,4.4782047,3109.2,3108.4,4.8213]
[1642516355284,0.00568424,3108.8,3108.4,4.8213]
[1642516355389,0.00568424,3108.8,3108.4,4.6927]
[1642516355390,0.08633754,3108.8,3108.4,4.6927]
[1642516355589,0.13361582,3108.7,3108.4,4.6927]
[1642516355778,0.00511582,3108.7,3108.4,4.6927]
[1642516355990,0.00454739,3108.6,3108.4,4.6927]
[1642516357128,0.00454739,3108.6,3108.5,6.82889775]
[1642516358628,0.00454739,3108.6,3108.5,1.31889775]
[1642516358831,0.00454739,3108.6,3108.4,4.6927]
[1642516359229,0.00397897,3108.5,3108.4,4.6927]
[1642516359637,1.76476651,3108.5,3108.4,4.6927]
[1642516359831,2.78336651,3108.5,3107.8,4.2286]
[1642516360087,1.31905,3108.4,3107.8,4.2286]
[1642516360279,1.34697202,3108.4,3107.7,10.08975781]
[1642516360477,0.31554251,3108.3,3106.5,0.13819997]
[1642516360677,18.8,3108.1,3106.6,12.0251]
[1642516360980,0.20311878,3108.2,3106.6,12.03192108]
[1642516360981,2.46398644,3107.2,3106.6,12.03192108]
[1642516361178,0.3,3107.2,3106.7,0.00625265]
[1642516361379,0.1287,3107.1,3106.7,0.00625265]
[1642516361577,0.1287,3107.5,3106.7,0.00625265]
[1642516361779,0.8048,3107.4,3106.7,0.00625265]
[1642516361981,0.07427353,3107.2,3106.7,0.00625265]
[1642516362183,0.1287,3107.1,3106.7,0.00625265]
[1642516362382,2.7484955,3107.1,3106.7,0.00625265]
[1642516362580,0.34282538,3107.0,3106.7,0.00625265]
[1642516362781,0.2093533,3106.9,3106.7,0.00625265]
[1642516363183,0.1287,3106.9,3106.7,0.00625265]
[1642516363942,0.03237765,3107.3,3106.7,0.00625265]
[1642516364152,0.1287,3107.4,3106.8,0.03031609]
[1642516364346,0.80473,3107.6,3106.7,0.00625265]
[1642516364547,0.93343,3107.6,3107.1,1.23773851]
[1642516364751,1.23343,3107.6,3107.1,1.23773851]
[1642516364947,1.23343,3107.6,3107.2,0.00341054]
[1642516365347,0.4287,3107.6,3107.2,0.00341054]
[1642516365751,2.7421158,3107.5,3107.2,0.00341054]
[1642516367254,2.7421158,3107.5,3106.7,0.00625265]
[1642516367255,0.00834342,3107.4,3106.7,0.00625265]
[1642516367699,2.7421158,3107.5,3106.7,0.00625265]
[1642516367887,2.7421158,3107.5,3107.0,1.12796985]
[1642516367888,3.0421158,3107.5,3107.0,1.12796985]
[1642516368287,3.0421158,3107.5,3107.1,0.00397896]
[1642516368687,0.0208793,3107.4,3107.1,0.00397896]
[1642516368892,0.1287,3107.9,3107.2,0.01341582]
[1642516369094,1.70973438,3107.5,3106.8,0.01393208]
[1642516369294,0.3,3107.5,3107.3,0.00284211]
[1642516369494,0.80464,3107.9,3106.9,0.00511581]
[1642516369495,0.1287,3107.8,3106.9,0.00511581]
[1642516369695,1.00039,3107.6,3106.7,0.00625265]
[1642516369899,5.64614223,3107.5,3106.7,0.00625265]
[1642516370096,7.55576223,3107.5,3106.7,0.00625265]
[1642516370298,1.2335,3107.5,3106.7,0.00625265]
[1642516370495,1.26927885,3107.5,3106.7,0.00625265]
[1642516370693,1.8649901,3107.4,3106.7,0.00625265]
[1642516370895,0.1287,3107.3,3106.7,0.00625265]
[1642516372227,0.4287,3107.5,3106.7,0.00625265]
[1642516372430,0.3,3107.5,3106.8,0.1287]
[1642516372627,0.3,3107.5,3106.7,0.13495265]
[1642516372827,0.1287,3108.0,3106.9,0.00511581]
[1642516373028,0.1287,3108.0,3106.8,0.00568423]
[1642516373231,1.65424538,3107.9,3107.3,1.32945539]
[1642516373528,0.1287,3107.8,3107.4,0.00227369]
[1642516373728,1.87933893,3108.1,3107.4,0.00227369]
[1642516373729,0.1287,3108.0,3107.4,0.00227369]
[1642516373928,0.1287,3107.7,3106.8,0.00568423]
[1642516374130,0.1287,3107.9,3106.7,0.00625265]
[1642516374329,0.1287,3107.6,3106.7,0.00625265]
[1642516374529,2.33748741,3107.8,3106.7,0.00625265]
[1642516374530,0.1287,3107.8,3106.7,0.00625265]
[1642516374732,2.74184261,3107.9,3106.9,0.02989175]
[1642516375079,2.74184261,3107.9,3107.0,0.13324738]
[1642516375279,2.74184261,3107.9,3107.1,0.01389678]
[1642516375481,2.74184261,3107.9,3107.6,1.21527221]
[1642516375680,2.74184261,3107.9,3107.2,0.1287]
[1642516375681,2.74184261,3107.9,3107.2,0.13211054]
[1642516375880,0.03596546,3108.0,3107.2,0.00341054]
[1642516376082,0.00113685,3108.0,3107.3,0.00284211]
[1642516376281,0.00113685,3108.0,3106.8,0.00568423]
[1642516376682,1.19144187,3108.0,3106.8,0.00568423]
[1642516376882,6.28105417,3107.9,3106.8,0.00568423]
[1642516377084,6.55143291,3107.9,3106.8,0.00568423]